[Event "LEM Niedersachsen-Meister 2025"]
[Site "Verden"]
[Date "2025.01.04"]
[Round "5.1"]
[White "Polster, Christian"]
[Black "Abel, Dennes"]
[Result "1/2-1/2"]
[ECO "B12"]
[WhiteElo "2252"]
[BlackElo "2381"]
[Annotator "TA"]
[PlyCount "22"]
[EventDate "2024.12.27"]
[EventType "swiss"]
[EventCountry "GER"]
[SourceTitle "playchess.com"]
[Source "ChessBase"]
[SourceQuality "1"]
[TimeControl "40/5400+30:1800+30"]

{[%evp 10,22,29,37,43,41,45,7,4,10,0,3,16,7,57]} 1. e4 {[%emt 0:00:53]} c6 {[%emt 0:00:02]} 2. d4 {[%emt 0:00:48]} d5 {[%emt 0:00:07]} 3. e5 {[%emt 0:00:08]} Bf5 {[%emt 0:00:08]} 4. Nf3 {[%emt 0:00:08]} e6 {[%emt 0:00:08]} 5. Be2 {[%emt 0:00:12]} Nd7 {[%emt 0:00:26]} 6. O-O {[%emt 0:01:23]} a5 {[%emt 0:00:04]} 7. a4 {[%emt 0:04:55]} f6 {[%emt 0:00:58]} 8. c4 {[%emt 0:02:00] With the idea cxd5.} fxe5 {[%emt 0:02:53] The position is equal.} 9. dxe5 {[%emt 0:03:04] aiming for cxd5.} Bc5 {[%emt 0:00:52]} 10. Nbd2 {[%emt 0:02:45]} Ne7 {[%emt 0:06:07]} 11. Nb3 {[%emt 0:00:55]} Bb6 {[%emt 0:13:13] Weighted Error Value: White=0.07 (flawless) /Black=0.04 (flawless) .  Mistake:       	---       	Black=1      Inaccurate:     	White=1     	---        OK:         	White=2     	Black=2      Best:        	---       	Black=1} (11... Ba7 $11) 1/2-1/2

[Event "LEM Niedersachsen-Meister 2025"]
[Site "Verden"]
[Date "2025.01.04"]
[Round "5.2"]
[White "Hampel, Felix"]
[Black "Voege, Tobias"]
[Result "1/2-1/2"]
[ECO "E12"]
[WhiteElo "2343"]
[BlackElo "2292"]
[Annotator "TA"]
[PlyCount "120"]
[EventDate "2024.12.27"]
[EventType "swiss"]
[EventCountry "GER"]
[SourceTitle "playchess.com"]
[Source "ChessBase"]
[SourceQuality "1"]
[TimeControl "40/5400+30:1800+30"]

{[%evp 12,120,25,13,15,20,26,23,24,22,25,14,24,17,20,18,26,33,35,14,52,0,0,-12,0,-15,4,13,53,45,42,67,172,6,15,6,6,13,14,16,21,0,0,0,0,0,0,-70,-70,-66,-68,-62,-57,-60,-55,-62,-62,-121,-114,-115,-111,-117,-70,-97,-93,-90,-85,-95,-86,-73,-73,-75,-83,-83,-75,-79,-82,-82,-79,-122,-93,-105,-105,-105,-105,-116,-56,-56,-59,-66,-35,-36,-8,-8,0,-35,-17,-14,-19,-45,-45,-71,-71,-71,0,-71,-25,-68,0,0,0]} 1. c4 {[%emt 0:00:04]} Nf6 {[%emt 0:00:44]} 2. Nf3 {[%emt 0:00:13]} b6 {[%emt 0:00:24]} 3. Nc3 {[%emt 0:00:21]} Bb7 {[%emt 0:00:12]} 4. d4 {[%emt 0:00:20]} e6 {[%emt 0:00:13]} 5. a3 {[%emt 0:00:07]} Ne4 {[%emt 0:00:51]} 6. Nxe4 {[%emt 0:03:07]} Bxe4 {[%emt 0:00:32]} 7. Bf4 {[%emt 0:00:13]} d6 {[%emt 0:05:07]} 8. e3 {[%emt 0:03:10]} Nd7 {[%emt 0:04:06]} 9. Bd3 {[%emt 0:06:07]} Bb7 {[%emt 0:07:51] White has an edge.} 10. Qc2 {[%emt 0:05:17]} g6 {[%emt 0:05:09]} 11. e4 {[%emt 0:08:34]} Bg7 {[%emt 0:03:49]} 12. Bg5 {[%emt 0:04:36]} Bf6 {[%emt 0:06:31]} 13. Be3 {[%emt 0:02:49]} c5 {[%emt 0:02:48]} 14. d5 {[%emt 0:06:41]} exd5 {[%emt 0:06:12]} 15. exd5 {[%emt 0:00:54]} b5 {[%emt 0:07:29]} 16. cxb5 {[%emt 0:06:22]} (16. Bh6 $1 $14) 16... O-O $11 {[%emt 0:06:45]} 17. O-O {[%emt 0:01:31]} Bxd5 {[%emt 0:01:50]} 18. Nd2 {[%emt 0:06:19]} Rb8 {[%emt 0:04:01]} 19. Rad1 {[%emt 0:04:03]} Qa5 {[%emt 0:10:23]} 20. Be2 {[%emt 0:11:25]} Nb6 {[%emt 0:02:54]} 21. Nb1 {[%emt 0:04:17][%cal Ob2b4]} Rfe8 {[%emt 0:07:28]} ({Black should play} 21... Rbc8 $1 $14) 22. Nc3 $2 {[%emt 0:09:17]} ({White must play} 22. b4 $1 $18 {[%cal Rb4a5]} cxb4 23. Bxb6 Rxb6 24. Rxd5 bxa3 25. Bc4) 22... Bxc3 {[%emt 0:01:53]} 23. bxc3 {[%emt 0:00:44]} Bc4 {[%emt 0:01:15]} 24. Rxd6 {[%emt 0:01:31]} Qxb5 {[%emt 0:06:08]} 25. Rb1 {[%emt 0:01:22]} Qa6 {[%emt 0:00:24]} 26. Bf3 {[%emt 0:03:36]} Qxa3 {[%emt 0:01:05]} 27. h4 {[%emt 0:00:13]} Be6 {[%emt 0:02:44]} 28. Bg5 {[%emt 0:04:25]} Bf5 {[%emt 0:01:35]} 29. Qc1 {[%emt 0:00:34]} (29. Qb2 $11 Nc4 30. Qxb8 Nxd6 31. Qxd6 Bxb1 32. Bd5 Re1+ (32... Qxc3 33. Bxf7+ Kg7 34. Bxe8 h5 35. Qe7+ Kg8 36. Qf7+ Kh8 37. Bf6+) 33. Kh2) 29... Nc4 $15 {[%emt 0:01:24]} 30. Rxb8 {[%emt 0:01:41]} Qxc1+ {[%emt 0:00:07]} 31. Bxc1 {[%emt 0:00:05] A strong pair of Bishops.} Rxb8 {[%emt 0:00:35]} 32. Rd1 {[%emt 0:00:11]} Rb1 {[%emt 0:02:19]} 33. Kh2 {[%emt 0:02:52]} Kg7 {[%emt 0:01:07]} 34. Bf4 {[%emt 0:01:42]} (34. Bd5 $15 Ne5 35. Ba2) 34... Rxd1 $17 {[%emt 0:00:21]} 35. Bxd1 {[%emt 0:00:02][%mdl 4096] Endgame. KBB-KBN} a5 {[%emt 0:01:06]} 36. Be2 {[%emt 0:02:33]} Nb2 {[%emt 0:00:19]} (36... Be6 $17 37. Bxc4 Bxc4) 37. c4 {[%emt 0:01:02]} f6 {[%emt 0:00:22] [#] Dodges Be5. And now ...a4 would win.} 38. Be3 {[%emt 0:00:35]} Bd3 {[%emt 0:00:34]} 39. Bf3 {[%emt 0:00:11]} a4 {[%emt 0:00:43] Strongly threatening ...a3.} 40. Bxc5 {[%emt 0:00:10]} Bxc4 {[%emt 0:00:30]} 41. Ba3 {[%emt 0:03:57]} Nd3 {[%emt 0:00:12]} 42. Be2 {[%emt 0:00:40]} Ne5 {[%emt 0:07:09]} 43. Bd1 {[%emt 0:00:57]} Bb3 {[%emt 0:01:18]} 44. Be2 {[%emt 0:00:06]} Kf7 {[%emt 0:01:05]} 45. f4 {[%emt 0:00:51]} Nc6 {[%emt 0:00:21]} 46. Kg3 {[%emt 0:01:09]} Nd4 {[%emt 0:04:59]} 47. Bd3 {[%emt 0:00:15]} Ke6 {[%emt 0:00:15]} 48. Kf2 {[%emt 0:01:21]} f5 {[%emt 0:02:42]} (48... Kd5 $17 {Hoping for ...Bc4.} 49. Bb2 Bc4) 49. Ke3 $15 {[%emt 0:02:48]} Kd5 {[%emt 0:00:13] ...Bc4 is the strong threat.} 50. Bb2 $1 {[%emt 0:01:38]} Ne6 {[%emt 0:00:59]} 51. h5 {[%emt 0:02:55]} Bc4 {[%emt 0:02:22] [#] ...Bxd3 would now be deadly.} 52. Bc2 {[%emt 0:00:57]} Bb3 {[%emt 0:02:27]} 53. Bd3 {[%emt 0:00:18]} Bd1 {[%emt 0:01:52]} 54. hxg6 {[%emt 0:01:02]} hxg6 {[%emt 0:00:03]} 55. g3 {[%emt 0:00:44]} Nc5 {[%emt 0:01:01]} 56. Kd2 {[%emt 0:02:05]} Bb3 {[%emt 0:04:59]} 57. Ke3 {[%emt 0:00:29]} Bd1 {[%emt 0:03:41]} 58. Kd2 {[%emt 0:00:03]} Bg4 {[%emt 0:00:37]} (58... Nxd3 $17 59. Kxd3 Bb3) 59. Ke3 {[%emt 0:00:50]} Ne4 {[%emt 0:01:11]} (59... Nxd3 $15 60. Kxd3 Bd1) 60. Bc2 $11 {[%emt 0:00:21]} Nxg3 {[%emt 0:03:14] Weighted Error Value: White=0.14 (very precise) /Black=0.13 (very precise) .  Missed win:     	White=1     	---        Mistake:       	White=3     	Black=5      Inaccurate:     	White=5     	Black=4      OK:         	White=25    	Black=24     Best:        	White=4     	Black=3      Strong:       	White=1     	---} 1/2-1/2

[Event "LEM Niedersachsen-Meister 2025"]
[Site "Verden"]
[Date "2025.01.04"]
[Round "5.3"]
[White "Nechitaylo, Nikita"]
[Black "Knuedel, Torben"]
[Result "1/2-1/2"]
[ECO "D04"]
[WhiteElo "2239"]
[BlackElo "2308"]
[Annotator "TA"]
[PlyCount "34"]
[EventDate "2024.12.27"]
[EventType "swiss"]
[EventCountry "GER"]
[SourceTitle "playchess.com"]
[Source "ChessBase"]
[SourceQuality "1"]
[TimeControl "40/5400+30:1800+30"]

{[%evp 9,34,-8,20,-11,41,25,47,54,39,40,43,37,43,24,37,0,35,39,41,12,25,16,12,18,12,-9,-4]} 1. d4 {[%emt 0:00:02]} Nf6 {[%emt 0:01:26]} 2. Nf3 {[%emt 0:00:04]} d5 {[%emt 0:01:50]} 3. e3 {[%emt 0:00:07]} g6 {[%emt 0:04:06]} 4. Be2 {[%emt 0:06:58]} Bg7 {[%emt 0:00:18]} 5. b3 {[%emt 0:00:55]} O-O {[%emt 0:01:43][%cal Oc7c5]} 6. O-O {[%emt 0:00:06]} a5 {[%emt 0:02:18]} (6... c5 $11) 7. Bb2 {[%emt 0:01:57]} c6 {[%emt 0:12:29]} 8. c4 {[%emt 0:03:17]} Bf5 {[%emt 0:10:42]} 9. Nc3 {[%emt 0:04:26]} Ne4 {[%emt 0:02:26]} 10. Nxe4 {[%emt 0:05:21]} Bxe4 {[%emt 0:00:39]} 11. Nd2 {[%emt 0:14:17]} Bf5 {[%emt 0:00:53]} 12. Bf3 {[%emt 0:03:09]} e5 {[%emt 0:12:03]} 13. dxe5 {[%emt 0:24:01]} Nd7 {[%emt 0:00:17]} 14. e4 {[%emt 0:06:57]} dxe4 {[%emt 0:00:31]} 15. Bxe4 {[%emt 0:00:02]} Bxe4 {[%emt 0:00:40]} 16. Nxe4 {[%emt 0:00:03] And now f4 would win.} Nxe5 {[%emt 0:01:06]} 17. Qc2 {[%emt 0:01:57]} Qd3 {[%emt 0:04:48]} 1/2-1/2

[Event "LEM Niedersachsen-Meister 2025"]
[Site "Verden"]
[Date "2025.01.04"]
[Round "5.4"]
[White "von Mettenheim, Johannes"]
[Black "Riemay, David"]
[Result "1-0"]
[ECO "A41"]
[WhiteElo "2333"]
[BlackElo "2243"]
[Annotator "TA"]
[PlyCount "71"]
[EventDate "2024.12.27"]
[EventType "swiss"]
[EventCountry "GER"]
[SourceTitle "playchess.com"]
[Source "ChessBase"]
[SourceQuality "1"]
[TimeControl "40/5400+30:1800+30"]

{[%evp 9,71,3,25,25,20,21,9,0,25,22,24,25,25,27,31,19,36,30,168,171,170,171,184,179,186,147,244,241,351,360,313,308,338,341,347,313,311,364,348,339,343,341,555,561,536,545,978,573,568,576,1102,663,664,640,725,739,733,712,1410,1377,1877,1779,2178,2043]} 1. d4 {[%emt 0:00:02]} d6 {[%emt 0:00:04]} 2. Nf3 {[%emt 0:00:11]} g6 {[%emt 0:00:02]} 3. c4 {[%emt 0:00:19]} f5 {[%emt 0:00:06]} 4. b4 {[%emt 0:00:40]} Bg7 {[%emt 0:00:06]} 5. Bb2 {[%emt 0:00:12]} a5 {[%emt 0:00:05]} 6. b5 {[%emt 0:00:45]} Nd7 {[%emt 0:00:13]} 7. e3 {[%emt 0:02:39]} e5 {[%emt 0:04:46]} 8. a4 {[%emt 0:01:33]} e4 {[%emt 0:04:48]} 9. Nfd2 {[%emt 0:00:14]} Nh6 {[%emt 0:02:08]} 10. Be2 {[%emt 0:14:54]} O-O {[%emt 0:00:42]} 11. Nc3 {[%emt 0:00:45][%cal Bb1c3,Bc3d5,Bd5f4][%mdl 32]} Kh8 {[%emt 1:23:00]} 12. Qc2 {[%emt 0:01:24]} Nf6 {[%emt 0:00:00]} 13. O-O {[%emt 0:12:09]} Nh5 {[%emt 0:00:00]} (13... Be6 $11) 14. Bxh5 $18 {[%emt 0:06:04]} gxh5 {[%emt 0:00:00]} 15. Nd5 {[%emt 0:00:10]} Ng4 {[%emt 0:00:00][%cal Bh6g4,Bg4f6,Bf6d5][%mdl 32]} 16. h3 {[%emt 0:11:12]} Nf6 {[%emt 0:00:00]} 17. Nf4 {[%emt 0:00:20]} Bh6 {[%emt 0:00:00]} (17... Qe8 $16 {was worth a try.} 18. d5 c6 19. dxc6 bxc6) 18. d5 {[%emt 0:04:53]} Qe8 {[%emt 0:00:00]} (18... Kg8 $142 19. f3 exf3 20. Rxf3 h4) 19. c5 {[%emt 0:05:05][%cal Bc4c5,Bc5d6][%mdl 32]} Kg8 {[%emt 0:00:00]} 20. cxd6 {[%emt 0:04:45]} Bxf4 {[%emt 0:00:00]} 21. exf4 {[%emt 0:00:21]} Nxd5 {[%emt 0:00:00] Black is weak on the dark squares} 22. Qc4 {[%emt 0:02:03]} Be6 {[%emt 0:00:00]} 23. Qd4 {[%emt 0:00:07]} (23. dxc7 Nxf4 24. Qc2 Qg6 $16) 23... Qg6 {[%emt 0:00:00] [#] Prevents Qg7+} 24. Nc4 $1 {[%emt 0:00:38][%cal Bd2c4,Bc4d6,Bd6b7,Bb7d8,Bd8c6,Bc6e5,Be5d7,Bd7f6][%mdl 32]} (24. dxc7 $2 Nxf4 $19) 24... cxd6 {[%emt 0:00:00]} 25. Nxd6 {[%emt 0:04:47]} (25. Qh8+ Kf7 26. Nxd6+ Ke7) 25... Rf6 $2 {[%emt 0:00:00]} (25... Qf6 26. Qxf6 (26. Nxb7 Qxd4 27. Bxd4 Nxf4 $18) 26... Nxf6 27. Nxb7 Nd5) 26. Qe5 {[%emt 0:07:42]} (26. Nxb7 $2 Nxf4 27. g3 Ne2+ (27... Nxh3+ 28. Kh1 $18) 28. Kh2 Nxd4 $19) 26... Raf8 {[%emt 0:00:00][%cal Ba8f8,Bf8f7,Bf7g7,Bg7d7][%mdl 32]} 27. Nxb7 {[%emt 0:02:33]} R8f7 {[%emt 0:00:00]} 28. Nd8 {[%emt 0:00:40][%cal Od8e6]} Rg7 {[%emt 0:00:00]} 29. g3 {[%emt 0:00:17]} e3 {[%emt 0:00:00] ...exf2+ would now be deadly.} 30. Ra3 {[%emt 0:01:44]} (30. fxe3 $2 Qxg3+ 31. Kh1 Qxh3#) 30... Rd7 {[%emt 0:02:38]} 31. Nc6 {[%emt 0:03:24]} h4 {[%emt 0:00:24][%cal Bh5h4,Bh4g3][%mdl 32]} 32. Rxe3 {[%emt 0:00:34]} ({Not} 32. Nxa5 hxg3 33. Rxe3 (33. fxe3 $2 {too greedy.} Qh5 $19) 33... gxf2+ 34. Kxf2 Rg7 $18 (34... Nxe3 $2 35. Qxe3 Rg7 36. Bxf6 $18)) 32... Nxe3 {[%emt 0:01:11]} 33. Qxe3 {[%emt 0:00:08][%cal Oc6e5] Strongly threatening Ne5!.} ({Stronger than} 33. Qxf6 Qxf6 34. Bxf6 Nxf1 35. Kxf1 Bb3 $14) 33... hxg3 {[%emt 0:00:31]} 34. Ne5 {[%emt 0:03:09]} Qh6 {[%emt 0:02:30]} 35. Nxd7 {[%emt 0:00:29]} Rg6 {[%emt 0:00:03] [#]} 36. Nf6+ $1 {[%emt 0:00:28]} 1-0

[Event "LEM Niedersachsen-Meister 2025"]
[Site "Verden"]
[Date "2025.01.04"]
[Round "5.5"]
[White "Mueer, Sebastian"]
[Black "Hoeffer, David"]
[Result "1-0"]
[ECO "D46"]
[WhiteElo "2175"]
[BlackElo "2322"]
[Annotator "TA"]
[PlyCount "95"]
[EventDate "2024.12.27"]
[EventType "swiss"]
[EventCountry "GER"]
[SourceTitle "playchess.com"]
[Source "ChessBase"]
[SourceQuality "1"]
[TimeControl "40/5400+30:1800+30"]

{[%evp 21,95,13,20,2,18,6,31,34,30,32,34,30,35,39,30,31,63,48,60,10,140,149,167,180,278,261,268,281,306,297,316,303,318,338,333,323,341,339,390,339,383,0,377,0,388,420,654,636,793,775,979,968,935,935,838,593,566,568,702,575,727,731,996,955,1181,1181,2382,2268,5089,5089,5065,5064,5064,4810,5177,374]} 1. d4 {[%emt 0:04:48]} d5 {[%emt 0:07:11]} 2. c4 {[%emt 0:00:18]} c6 {[%emt 0:00:04]} 3. Nc3 {[%emt 0:00:09]} Nf6 {[%emt 0:00:05]} 4. e3 {[%emt 0:00:08]} e6 {[%emt 0:00:04]} 5. Nf3 {[%emt 0:00:08]} Nbd7 {[%emt 0:00:04]} 6. Bd3 {[%emt 0:00:09]} dxc4 {[%emt 0:00:04]} 7. Bxc4 {[%emt 0:00:07]} b5 {[%emt 0:00:05]} 8. Bd3 {[%emt 0:00:14]} Bd6 {[%emt 0:00:04]} 9. O-O {[%emt 0:03:21]} O-O {[%emt 0:00:10]} 10. Qc2 {[%emt 0:01:07]} Bb7 {[%emt 0:00:22]} 11. e4 {[%emt 0:07:22]} e5 {[%emt 0:01:36]} 12. h3 {[%emt 0:03:26]} a6 {[%emt 0:06:10]} 13. Be3 {[%emt 0:03:28]} Qe7 {[%emt 0:00:17]} 14. dxe5 {[%emt 0:02:50]} Nxe5 {[%emt 0:00:07]} 15. Nxe5 {[%emt 0:00:16]} Bxe5 {[%emt 0:00:05]} 16. f4 {[%emt 0:00:12]} Bxc3 {[%emt 0:01:09]} 17. bxc3 {[%emt 0:01:44]} c5 {[%emt 0:00:10][%cal Bc6c5,Bc5c4][%mdl 32] Threatens to win with ...c4!.} 18. e5 {[%emt 0:02:53]} c4 {[%emt 0:02:12]} 19. Bf5 {[%emt 0:01:14] This pair of bishops is nice.} g6 {[%emt 0:08:44]} 20. Bd4 {[%emt 0:01:23]} ({Better is} 20. Qf2 $1 $14 gxf5 21. Bc5 (21. exf6 Qxf6 22. Bd4 Qg6 $11)) 20... Nd5 {[%emt 0:03:06] [#]} (20... gxf5 $11 21. exf6 Qe6) 21. Bg4 $1 $16 {[%emt 0:12:43]} Rad8 {[%emt 0:45:13]} 22. Qf2 {[%emt 0:02:29]} f5 {[%emt 0:04:26] [#]} (22... h5 $142) 23. exf6 $1 $18 {[%emt 0:04:39]} Nxf6 {[%emt 0:00:20]} 24. Bc5 {[%emt 0:03:03]} Nxg4 {[%emt 0:00:40]} 25. hxg4 {[%emt 0:07:35]} Qf6 {[%emt 0:00:09]} 26. Bxf8 {[%emt 0:00:11]} Rxf8 {[%emt 0:00:04][%cal Bd8f8,Bf8e8,Be8e4][%mdl 32]} 27. Qe3 {[%emt 0:03:07]} Qc6 {[%emt 0:00:43][%csl Gb7][%cal Rc6g2]} 28. Rf2 {[%emt 0:02:25]} Re8 {[%emt 0:00:07]} 29. Qd4 {[%emt 0:00:06]} Re4 {[%emt 0:02:06]} 30. Qd8+ {[%emt 0:00:47]} Re8 {[%emt 0:00:05]} 31. Qd4 {[%emt 0:02:58]} Re4 {[%emt 0:00:18]} 32. Qd8+ {[%emt 0:31:10]} Re8 {[%emt 0:00:22]} 33. Qh4 {[%emt 0:00:00]} Qd5 {[%emt 0:05:23]} (33... Rf8 $142 34. Re1 Qf6 35. Qxf6 Rxf6) 34. f5 {[%emt 0:00:00][%cal Bf4f5,Bf5f6][%mdl 32]} Qe5 {[%emt 0:00:08]} 35. f6 {[%emt 0:00:00]} Bd5 {[%emt 0:00:17]} 36. Qh6 {[%emt 0:00:00]} Qc7 {[%emt 0:00:25]} 37. Rd1 {[%emt 0:00:00]} Be6 {[%emt 0:00:04]} 38. Rfd2 {[%emt 0:00:00][%cal Od2d7]} Qc5+ {[%emt 0:05:10]} 39. Rd4 {[%emt 0:00:00]} Qf8 {[%emt 0:00:53] Prevents Qg7+.} 40. Qg5 {[%emt 0:00:00][%cal Od4d8]} Bf7 {[%emt 0:00:38]} 41. Qd2 {[%emt 0:26:59]} a5 {[%emt 0:16:46][%cal Ba6a5,Ba5b4][%mdl 32]} 42. Re1 {[%emt 0:00:00]} Rxe1+ {[%emt 0:04:38]} 43. Qxe1 {[%emt 0:00:00] and Qd2 would now be decisive. KQR-KQB} b4 {[%emt 0:00:01]} 44. cxb4 {[%emt 0:00:00]} axb4 {[%emt 0:00:21]} 45. Qe7 {[%emt 0:00:00] White wants to mate with Rd8.} Be8 {[%emt 0:02:22]} 46. Qxf8+ {[%emt 0:00:00]} Kxf8 {[%emt 0:00:04]} 47. Rxc4 {[%emt 0:00:00]} Bf7 {[%emt 0:00:12]} 48. Rc8+ {[%emt 0:00:00]} 1-0

[Event "LEM Niedersachsen-Meister 2025"]
[Site "Verden"]
[Date "2025.01.04"]
[Round "5.6"]
[White "Bruns, Kai-Christian"]
[Black "Giorgadze, Giorgi Gel"]
[Result "0-1"]
[ECO "C02"]
[WhiteElo "2157"]
[BlackElo "2569"]
[Annotator "TA"]
[PlyCount "94"]
[EventDate "2024.12.27"]
[EventType "swiss"]
[EventCountry "GER"]
[SourceTitle "playchess.com"]
[Source "ChessBase"]
[SourceQuality "1"]
[TimeControl "40/5400+30:1800+30"]

{[%evp 11,94,-13,-8,-20,-27,-27,-16,-58,-27,-54,0,0,0,-64,41,15,88,96,90,88,191,191,182,174,232,171,176,116,156,93,106,-58,149,147,236,232,218,201,452,25,14,21,45,-38,-47,-42,0,-7,0,0,0,-62,-70,-54,-60,-64,-28,-253,-214,-460,-431,-488,-488,-575,-476,-697,-533,-601,-533,-608,-598,-597,-593,-598,-585,-29984,-29985,-29985,-29986,-29993,-29994,-29994,-29995,-29995,-29996]} 1. e4 {[%emt 0:00:02]} e6 {[%emt 0:06:05]} 2. d4 {[%emt 0:00:04]} d5 {[%emt 0:00:49]} 3. e5 {[%emt 0:00:07]} c5 {[%emt 0:00:13]} 4. c3 {[%emt 0:00:05]} Nc6 {[%emt 0:00:05]} 5. Nf3 {[%emt 0:00:05]} Qb6 {[%emt 0:00:06]} 6. Bd3 {[%emt 0:00:08]} cxd4 {[%emt 0:00:27]} 7. O-O {[%emt 0:00:10]} Bd7 {[%emt 0:01:23]} 8. Re1 {[%emt 0:00:24]} Nge7 {[%emt 0:07:02]} 9. h4 {[%emt 0:00:12]} h6 {[%emt 0:19:21]} 10. h5 {[%emt 0:00:20]} Nc8 {[%emt 0:05:02]} (10... a6 $15) 11. a3 $11 {[%emt 0:16:10]} a6 {[%emt 0:03:59]} 12. b4 {[%emt 0:01:39]} (12. c4 $11) 12... Be7 {[%emt 0:06:57]} (12... dxc3 $1 $15 13. Nxc3 Qd8) 13. Nxd4 $14 {[%emt 0:05:00]} Bg5 {[%emt 0:19:14]} (13... Nxd4 $11 14. Be3 (14. cxd4 Qxd4 15. Ra2 Bg5 $11) 14... Qc7 15. cxd4 (15. Bxd4 Na7 $14) 15... Bb5) 14. Bxg5 $16 {[%emt 0:06:16]} hxg5 {[%emt 0:00:15]} 15. Nxc6 {[%emt 0:02:12]} bxc6 {[%emt 0:02:41]} (15... Bxc6 $16 16. Qg4 Qd8) 16. Qg4 $18 {[%emt 0:00:30]} Qd8 {[%emt 0:00:21]} 17. Nd2 {[%emt 0:01:14]} Qe7 {[%emt 0:01:10]} (17... Kf8 18. Nb3 Be8) 18. Nb3 {[%emt 0:14:29]} Nb6 {[%emt 0:01:08]} 19. Na5 {[%emt 0:13:45]} (19. a4 $1 $18 {[%cal Ra4a5] Threatens to win with a5.} Bc8 20. a5) 19... Ra7 {[%emt 0:02:48]} 20. Qe2 {[%emt 0:02:47]} (20. a4 $142) 20... c5 $16 {[%emt 0:01:43] [#]} 21. Bxa6 $2 {[%emt 0:03:24]} (21. bxc5 $1 $16 Qxc5 22. Nb3) 21... c4 $2 {[%emt 0:00:39]} (21... g4 $1 $15 {keeps the upper hand.} 22. bxc5 Qh4 23. cxb6 Qxh5) 22. Bb7 {[%emt 0:01:01]} O-O {[%emt 0:01:33]} (22... Qd8 $16 23. Qg4 Na4) 23. Qe3 $18 {[%emt 0:02:48]} Qd8 {[%emt 0:00:29]} 24. Nc6 {[%emt 0:04:26]} Qc7 $2 {[%emt 0:02:25]} (24... Bxc6 {keeps fighting.} 25. Bxc6 g4) 25. Ne7+ $2 {[%emt 0:06:17]} (25. Qxg5 Bxc6 26. h6 f5 (26... Qxb7 27. Qxg7#) 27. exf6 Rxf6 28. hxg7 Nd7 $18) (25. Nxa7 $18 Qxb7 26. Qxg5) 25... Kh7 $11 {[%emt 0:02:20] [#]} 26. Qxg5 $1 {[%emt 0:01:00]} Be8 $1 {[%emt 0:03:42] [#]} 27. Bxd5 {[%emt 0:12:14]} Qxe7 $15 {[%emt 0:04:41]} 28. Be4+ {[%emt 0:00:09]} Kh8 {[%emt 0:00:20]} 29. Qe3 {[%emt 0:01:45][%cal Oh5h6]} Nd5 {[%emt 0:00:36]} 30. Bxd5 {[%emt 0:00:21]} exd5 {[%emt 0:00:02]} 31. h6 {[%emt 0:00:37]} (31. Red1 $11) 31... Ra6 $36 {[%emt 0:01:47][%mdl 2048] Black has the initiative.} 32. hxg7+ {[%emt 0:00:05]} Kxg7 {[%emt 0:00:05]} 33. Qd4 {[%emt 0:00:10]} Rh6 {[%emt 0:01:13]} 34. g3 $2 {[%emt 0:01:46]} (34. e6+ $1 $11 Qf6 35. exf7 (35. Qxf6+ Kxf6 36. exf7 Kxf7 $17) 35... Bxf7 36. Qxf6+ Kxf6 (36... Rxf6 37. b5 $17) 37. b5) 34... Qe6 {[%emt 0:02:08]} 35. g4 $2 {[%emt 0:01:16]} (35. f3 {was forced.}) 35... Rfh8 $19 {[%emt 0:00:48]} 36. Kg2 {[%emt 0:01:03]} Rh2+ {[%emt 0:02:21] White is weak on the light squares} 37. Kf3 {[%emt 0:00:01]} R2h3+ {[%emt 0:00:20]} 38. Kg2 {[%emt 0:00:16]} (38. Ke2 $142) 38... Rd3 {[%emt 0:00:27]} 39. Qf4 {[%emt 0:00:10]} d4 {[%emt 0:00:26] ...Bc6+ would now be deadly.} 40. f3 {[%emt 0:03:33]} Bc6 {[%emt 0:00:44]} 41. Rf1 {[%emt 0:06:18]} Rxc3 {[%emt 0:04:23]} 42. b5 {[%emt 0:04:27]} Bd5 {[%emt 0:05:13]} 43. Qxd4 {[%emt 0:06:58] [#]} Qh6 $1 {[%emt 0:02:46][%csl Gh8][%cal Rh6h2]} 44. e6+ {[%emt 0:00:05]} Kg6 {[%emt 0:00:28][%csl Gh8][%cal Rh6h2]} 45. Rg1 {[%emt 0:02:40]} Qh3+ {[%emt 0:00:37]} 46. Kf2 {[%emt 0:00:02]} Qxf3+ {[%emt 0:00:07]} 47. Ke1 {[%emt 0:00:04]} Re3+ {[%emt 0:00:07]} 0-1

[Event "LEM Niedersachsen-Meister 2025"]
[Site "Verden"]
[Date "2025.01.04"]
[Round "5.7"]
[White "Stelmaszyk, Nico"]
[Black "Schiller, Jan-Hendrik"]
[Result "1-0"]
[ECO "B06"]
[WhiteElo "2403"]
[BlackElo "1952"]
[Annotator "TA"]
[PlyCount "41"]
[EventDate "2024.12.27"]
[EventType "swiss"]
[EventCountry "GER"]
[SourceTitle "playchess.com"]
[Source "ChessBase"]
[SourceQuality "1"]
[TimeControl "40/5400+30:1800+30"]

{[%evp 9,41,35,28,14,20,14,27,27,19,22,37,26,24,22,47,18,33,19,28,21,28,16,41,56,140,164,159,154,130,117,345,352,339,334]} 1. e4 {[%emt 0:00:03]} c5 {[%emt 0:00:15]} 2. c3 {[%emt 0:00:10]} d5 {[%emt 0:00:21]} 3. exd5 {[%emt 0:00:05]} Qxd5 {[%emt 0:00:21]} 4. d4 {[%emt 0:00:04]} g6 {[%emt 0:00:30]} 5. Nf3 {[%emt 0:00:12]} Bg7 {[%emt 0:00:31]} 6. Nbd2 {[%emt 0:00:34] And now Bc4 would win.} cxd4 {[%emt 0:03:49]} 7. Bc4 {[%emt 0:01:11]} Qd8 {[%emt 0:02:33]} 8. Nxd4 {[%emt 0:00:10]} Nf6 {[%emt 0:00:50]} 9. O-O {[%emt 0:00:07]} O-O {[%emt 0:01:12]} 10. N2f3 {[%emt 0:00:06]} Qc7 {[%emt 0:06:42]} 11. Qe2 {[%emt 0:00:10]} a6 {[%emt 0:04:54] Repels Nb5} 12. Re1 {[%emt 0:00:14][%cal Of3e5]} Bg4 {[%emt 0:10:16][%cal Oe7e5]} 13. Bb3 {[%emt 0:02:46]} (13. Qxe7 $2 Qxc4 14. Qxb7 Nbd7 $19) 13... Nc6 {[%emt 0:07:28]} 14. Qc4 {[%emt 0:12:51]} (14. Nxc6 Qxc6 15. Ne5 Bxe2 16. Nxc6 bxc6 17. Rxe2 e6 18. Bg5) 14... Bxf3 $1 {[%emt 0:04:09]} 15. Nxf3 {[%emt 0:03:23][%cal Of3e5]} Rac8 {[%emt 0:05:44][%cal Ba8c8,Bc8c7,Bc7f7][%mdl 32]} (15... e6 {simplifies} 16. Bf4 Qc8 17. Qe2 Na5) 16. Bf4 {[%emt 0:05:50]} b5 {[%emt 0:00:47] [#]} 17. Qxf7+ $3 $16 {[%emt 0:00:58][%mdl 512]} Rxf7 {[%emt 0:01:56]} 18. Bxc7 {[%emt 0:00:06] White is much more active.} Rxc7 {[%emt 0:01:13]} 19. Ng5 $1 {[%emt 0:00:08]} e5 $2 {[%emt 0:02:40]} 20. Nxf7 $18 {[%emt 0:00:55]} (20. Bxf7+ Rxf7 21. Nxf7 Kxf7 $18) 20... Rxf7 {[%emt 0:00:10]} 21. a4 {[%emt 0:00:43]} ({Resist} 21. Bxf7+ Kxf7 22. a4 e4 23. axb5 axb5 $18) 1-0